[Event "Titled Tuesday Blitz April 18 Late 2023"]
[White "Allam, Yara"]
[Black "Ansh M Shah"]
[WhiteFideId "10615709"]
[BlackFideId "25033379"]
[WhiteElo "1758"]
[BlackElo "2084"]
[Result "0-1"]
[Round "06"]
[TimeControl "180+2"]
[Date "2023.04.18"]
[WhiteClock "0:00:42"]
[BlackClock "0:00:24"]

1. e4 {[%clk 0:03:00]}  c6 {[%clk 0:02:55]} 2. d4 {[%clk 0:03:01]}  d5 {[%clk 0:02:56]} 3. Nc3 {[%clk 0:03:01]}  dxe4 {[%clk 0:02:51]} 4. Nxe4 {[%clk 0:03:02]}  Bf5 {[%clk 0:02:52]} 5. Ng3 {[%clk 0:03:02]}  Bg6 {[%clk 0:02:53]} 6. Nf3 {[%clk 0:03:02]}  Nd7 {[%clk 0:02:52]} 7. h4 {[%clk 0:03:02]}  h6 {[%clk 0:02:52]} 8. h5 {[%clk 0:03:03]}  Bh7 {[%clk 0:02:52]} 9. Bd3 {[%clk 0:03:03]}  Bxd3 {[%clk 0:02:53]} 10. Qxd3 {[%clk 0:03:04]}  e6 {[%clk 0:02:54]} 11. Bf4 {[%clk 0:03:04]}  Qa5+ {[%clk 0:02:54]} 12. Bd2 {[%clk 0:03:05]}  Bb4 {[%clk 0:02:54]} 13. c3 {[%clk 0:03:02]}  Be7 {[%clk 0:02:53]} 14. Ne4 {[%clk 0:03:02]}  Ngf6 {[%clk 0:02:52]} 15. Nxf6+ {[%clk 0:02:54]}  Nxf6 {[%clk 0:02:53]} 16. Ne5 {[%clk 0:02:54]}  O-O {[%clk 0:02:45]} 17. g4 {[%clk 0:02:49]}  Qd5 {[%clk 0:02:39]} 18. Rg1 {[%clk 0:02:43]}  c5 {[%clk 0:02:39]} 19. g5 {[%clk 0:02:37]}  cxd4 {[%clk 0:02:28]} 20. gxh6 {[%clk 0:02:32]}  Qxe5+ {[%clk 0:02:27]} 21. Kd1 {[%clk 0:02:32]}  Qxh5+ {[%clk 0:02:06]} 22. Kc2 {[%clk 0:02:27]}  Qf5 {[%clk 0:02:06]} 23. Rxg7+ {[%clk 0:02:24]}  Kh8 {[%clk 0:02:06]} 24. Qxf5 {[%clk 0:02:22]}  exf5 {[%clk 0:02:07]} 25. Rag1 {[%clk 0:02:22]}  Rac8 {[%clk 0:02:02]} 26. Kb1 {[%clk 0:02:20]}  Ne4 {[%clk 0:01:57]} 27. Bf4 {[%clk 0:02:10]}  Bf6 {[%clk 0:01:54]} 28. R7g2 {[%clk 0:02:05]}  dxc3 {[%clk 0:01:49]} 29. h7 {[%clk 0:01:58]}  cxb2 {[%clk 0:01:39]} 30. Bh6 {[%clk 0:01:51]}  Rfd8 {[%clk 0:01:05]} 31. Bg7+ {[%clk 0:01:49]}  Bxg7 {[%clk 0:01:03]} 32. Rxg7 {[%clk 0:01:49]}  Nd2+ {[%clk 0:01:02]} 33. Kxb2 {[%clk 0:01:45]}  Rf8 {[%clk 0:00:49]} 34. f4 {[%clk 0:01:31]}  Nc4+ {[%clk 0:00:23]} 35. Kb3 {[%clk 0:01:26]}  Ne3 {[%clk 0:00:24]} 36. R7g5 {[%clk 0:01:20]}  b6 {[%clk 0:00:16]} 37. Re1 {[%clk 0:01:07]}  Nc2 {[%clk 0:00:15]} 38. Reg1 {[%clk 0:01:05]}  Nd4+ {[%clk 0:00:16]} 39. Kb2 {[%clk 0:01:03]}  Nf3 {[%clk 0:00:17]} 40. R1g2 {[%clk 0:00:53]}  Nxg5 {[%clk 0:00:17]} 41. Rxg5 {[%clk 0:00:52]}  Kxh7 {[%clk 0:00:17]} 42. Rxf5 {[%clk 0:00:53]}  Kg6 {[%clk 0:00:17]} 43. Rg5+ {[%clk 0:00:53]}  Kf6 {[%clk 0:00:17]} 44. Rh5 {[%clk 0:00:53]}  Rfd8 {[%clk 0:00:18]} 45. Rh6+ {[%clk 0:00:53]}  Ke7 {[%clk 0:00:19]} 46. Rh5 {[%clk 0:00:53]}  Rd2+ {[%clk 0:00:19]} 47. Kb3 {[%clk 0:00:53]}  Rf2 {[%clk 0:00:20]} 48. Re5+ {[%clk 0:00:53]}  Kf6 {[%clk 0:00:20]} 49. Re4 {[%clk 0:00:52]}  Rc6 {[%clk 0:00:18]} 50. Rd4 {[%clk 0:00:50]}  a5 {[%clk 0:00:18]} 51. Re4 {[%clk 0:00:48]}  Rc5 {[%clk 0:00:18]} 52. Rd4 {[%clk 0:00:48]}  Rf3+ {[%clk 0:00:18]} 53. Kb2 {[%clk 0:00:47]}  Kf5 {[%clk 0:00:18]} 54. Rd7 {[%clk 0:00:44]}  f6 {[%clk 0:00:18]} 55. Rd6 {[%clk 0:00:43]}  b5 {[%clk 0:00:18]} 56. Ra6 {[%clk 0:00:43]}  a4 {[%clk 0:00:18]} 57. Rd6 {[%clk 0:00:40]}  Rxf4 {[%clk 0:00:18]} 58. Rd7 {[%clk 0:00:39]}  Rf2+ {[%clk 0:00:15]} 59. Kb1 {[%clk 0:00:39]}  Re5 {[%clk 0:00:15]} 60. Rd1 {[%clk 0:00:35]}  Ree2 {[%clk 0:00:15]} 61. a3 {[%clk 0:00:34]}  Rb2+ {[%clk 0:00:15]} 62. Ka1 {[%clk 0:00:32]}  Ra2+ {[%clk 0:00:15]} 63. Kb1 {[%clk 0:00:33]}  Rfb2+ {[%clk 0:00:16]} 64. Kc1 {[%clk 0:00:33]}  Ra1+ {[%clk 0:00:16]} 65. Kxb2 {[%clk 0:00:34]}  Rxd1 {[%clk 0:00:17]} 66. Ka2 {[%clk 0:00:34]}  Rd3 {[%clk 0:00:17]} 67. Kb2 {[%clk 0:00:35]}  Ke4 {[%clk 0:00:17]} 68. Ka2 {[%clk 0:00:36]}  Kd4 {[%clk 0:00:18]} 69. Kb2 {[%clk 0:00:37]}  Kc4 {[%clk 0:00:19]} 70. Ka2 {[%clk 0:00:38]}  f5 {[%clk 0:00:20]} 71. Kb2 {[%clk 0:00:38]}  f4 {[%clk 0:00:21]} 72. Ka2 {[%clk 0:00:39]}  f3 {[%clk 0:00:22]} 73. Kb2 {[%clk 0:00:40]}  f2 {[%clk 0:00:23]} 74. Ka2 {[%clk 0:00:41]}  f1=Q {[%clk 0:00:23]} 75. Kb2 {[%clk 0:00:42]}  Qe2+ {[%clk 0:00:24]} 76. Kb1 {[%clk 0:00:42]}  Rd1# {[%clk 0:00:24]} 0-1


[Site "https://www.chess.com"]

[Event "Titled Tuesday Blitz April 18 Late 2023"]
[White "EsmeraldasAnderson03"]
[Black "tandercat"]
[WhiteElo "2380"]
[BlackElo "1975"]
[Result "1-0"]
[Round "06"]
[TimeControl "180+2"]
[Date "2023.04.18"]
[WhiteClock "0:00:17"]
[BlackClock "0:00:12"]

1. d4 {[%clk 0:02:38]}  d5 {[%clk 0:02:59]} 2. c4 {[%clk 0:02:39]}  e6 {[%clk 0:02:59]} 3. cxd5 {[%clk 0:02:39]}  exd5 {[%clk 0:02:58]} 4. Nc3 {[%clk 0:02:40]}  c6 {[%clk 0:02:57]} 5. Nf3 {[%clk 0:02:41]}  h6 {[%clk 0:02:55]} 6. Qc2 {[%clk 0:02:41]}  Bd6 {[%clk 0:02:52]} 7. Ne5 {[%clk 0:02:33]}  Nd7 {[%clk 0:02:43]} 8. Bf4 {[%clk 0:02:29]}  Qe7 {[%clk 0:02:26]} 9. Ng6 {[%clk 0:02:11]}  fxg6 {[%clk 0:01:46]} 10. Qxg6+ {[%clk 0:02:09]}  Kd8 {[%clk 0:01:46]} 11. Bxd6 {[%clk 0:02:06]}  Qf6 {[%clk 0:01:42]} 12. Qxf6+ {[%clk 0:02:04]}  Ngxf6 {[%clk 0:01:42]} 13. e3 {[%clk 0:02:03]}  Ke8 {[%clk 0:01:32]} 14. Bd3 {[%clk 0:02:03]}  Kf7 {[%clk 0:01:32]} 15. h4 {[%clk 0:01:45]}  Re8 {[%clk 0:01:30]} 16. b4 {[%clk 0:01:13]}  Ne4 {[%clk 0:01:25]} 17. Nxe4 {[%clk 0:01:11]}  dxe4 {[%clk 0:01:24]} 18. Bc4+ {[%clk 0:01:10]}  Kg6 {[%clk 0:01:22]} 19. h5+ {[%clk 0:01:10]}  Kh7 {[%clk 0:01:20]} 20. Bf7 {[%clk 0:01:10]}  Rd8 {[%clk 0:01:14]} 21. Be7 {[%clk 0:01:10]}  Rg8 {[%clk 0:01:08]} 22. Bxg8+ {[%clk 0:01:04]}  Kxg8 {[%clk 0:01:08]} 23. Rh4 {[%clk 0:01:02]}  Nf6 {[%clk 0:00:58]} 24. Bxf6 {[%clk 0:01:01]}  gxf6 {[%clk 0:00:59]} 25. Rxe4 {[%clk 0:01:01]}  Kf7 {[%clk 0:00:59]} 26. Rh4 {[%clk 0:00:53]}  Bf5 {[%clk 0:00:58]} 27. Kd2 {[%clk 0:00:46]}  Re8 {[%clk 0:00:55]} 28. f3 {[%clk 0:00:45]}  Be6 {[%clk 0:00:50]} 29. a4 {[%clk 0:00:42]}  Bc4 {[%clk 0:00:49]} 30. Rg4 {[%clk 0:00:35]}  a6 {[%clk 0:00:38]} 31. Rg6 {[%clk 0:00:34]}  Rh8 {[%clk 0:00:36]} 32. Rc1 {[%clk 0:00:22]}  Bb3 {[%clk 0:00:33]} 33. a5 {[%clk 0:00:14]}  Ke6 {[%clk 0:00:24]} 34. e4 {[%clk 0:00:13]}  Ke7 {[%clk 0:00:23]} 35. Ke3 {[%clk 0:00:12]}  Kf7 {[%clk 0:00:23]} 36. Rh1 {[%clk 0:00:12]}  Be6 {[%clk 0:00:21]} 37. Rh4 {[%clk 0:00:11]}  Bc4 {[%clk 0:00:20]} 38. Rf4 {[%clk 0:00:11]}  Ke7 {[%clk 0:00:15]} 39. Rfxf6 {[%clk 0:00:11]}  Rh7 {[%clk 0:00:11]} 40. Rxh6 {[%clk 0:00:12]}  Rxh6 {[%clk 0:00:11]} 41. Rxh6 {[%clk 0:00:13]}  Kf7 {[%clk 0:00:11]} 42. Rh7+ {[%clk 0:00:12]}  Kg8 {[%clk 0:00:12]} 43. Rxb7 {[%clk 0:00:13]}  Bb5 {[%clk 0:00:10]} 44. g4 {[%clk 0:00:13]}  Kh8 {[%clk 0:00:09]} 45. g5 {[%clk 0:00:14]}  Kg8 {[%clk 0:00:09]} 46. f4 {[%clk 0:00:15]}  Kh8 {[%clk 0:00:10]} 47. f5 {[%clk 0:00:15]}  Kg8 {[%clk 0:00:11]} 48. h6 {[%clk 0:00:16]}  Kh8 {[%clk 0:00:12]} 49. g6 {[%clk 0:00:17]} 1-0


[Site "https://www.chess.com"]

[Event "Titled Tuesday Blitz April 18 Late 2023"]
[White "Erzhanov, Arman"]
[Black "Ng, Gary"]
[WhiteFideId "4138821"]
[BlackFideId "2604914"]
[WhiteElo "2138"]
[BlackElo "2301"]
[Result "1-0"]
[Round "06"]
[TimeControl "180+2"]
[Date "2023.04.18"]
[WhiteClock "0:00:21"]
[BlackClock "0:00:03"]

1. e4 {[%clk 0:02:53]}  b6 {[%clk 0:02:58]} 2. d4 {[%clk 0:02:52]}  Bb7 {[%clk 0:02:59]} 3. Bd3 {[%clk 0:02:52]}  Nf6 {[%clk 0:02:59]} 4. Qe2 {[%clk 0:02:52]}  Nc6 {[%clk 0:03:00]} 5. c3 {[%clk 0:02:52]}  e5 {[%clk 0:03:00]} 6. Nf3 {[%clk 0:02:46]}  exd4 {[%clk 0:03:01]} 7. Nxd4 {[%clk 0:02:44]}  Be7 {[%clk 0:03:01]} 8. Nf5 {[%clk 0:02:41]}  O-O {[%clk 0:02:59]} 9. O-O {[%clk 0:02:41]}  Re8 {[%clk 0:02:56]} 10. Bg5 {[%clk 0:02:39]}  Ne5 {[%clk 0:02:43]} 11. Bc2 {[%clk 0:02:35]}  d5 {[%clk 0:02:24]} 12. f4 {[%clk 0:02:26]}  Ng6 {[%clk 0:01:47]} 13. e5 {[%clk 0:02:26]}  Ne4 {[%clk 0:01:26]} 14. Nxe7+ {[%clk 0:02:24]}  Nxe7 {[%clk 0:01:26]} 15. Nd2 {[%clk 0:02:19]}  Nxg5 {[%clk 0:01:17]} 16. fxg5 {[%clk 0:02:20]}  Ng6 {[%clk 0:01:18]} 17. Nf3 {[%clk 0:02:19]}  Qe7 {[%clk 0:01:00]} 18. Rae1 {[%clk 0:02:19]}  Rad8 {[%clk 0:00:42]} 19. h4 {[%clk 0:02:19]}  Qc5+ {[%clk 0:00:31]} 20. Kh2 {[%clk 0:02:14]}  Qa5 {[%clk 0:00:27]} 21. Qd2 {[%clk 0:01:46]}  Ba6 {[%clk 0:00:23]} 22. Rf2 {[%clk 0:01:46]}  Qc5 {[%clk 0:00:21]} 23. h5 {[%clk 0:01:33]}  Nf8 {[%clk 0:00:20]} 24. Nd4 {[%clk 0:01:24]}  Ne6 {[%clk 0:00:20]} 25. Bxh7+ {[%clk 0:00:34]}  Kxh7 {[%clk 0:00:19]} 26. Rxf7 {[%clk 0:00:34]}  Nxd4 {[%clk 0:00:16]} 27. g6+ {[%clk 0:00:31]}  Kg8 {[%clk 0:00:14]} 28. cxd4 {[%clk 0:00:30]}  Qa5 {[%clk 0:00:10]} 29. b4 {[%clk 0:00:30]}  Qa3 {[%clk 0:00:09]} 30. Re3 {[%clk 0:00:27]}  Qa4 {[%clk 0:00:05]} 31. h6 {[%clk 0:00:28]}  Rf8 {[%clk 0:00:05]} 32. Rxg7+ {[%clk 0:00:27]}  Kh8 {[%clk 0:00:05]} 33. Rxc7 {[%clk 0:00:25]}  Rg8 {[%clk 0:00:03]} 34. Rh7# {[%clk 0:00:21]} 1-0


[Site "https://www.chess.com"]

[Event "Titled Tuesday Blitz April 18 Late 2023"]
[White "Harish, Neeraj"]
[Black "Seletsky, Grigory"]
[WhiteFideId "30958130"]
[BlackFideId "14112191"]
[WhiteElo "1965"]
[BlackElo "2490"]
[Result "1-0"]
[Round "06"]
[TimeControl "180+2"]
[Date "2023.04.18"]
[WhiteClock "0:00:11"]
[BlackClock "0:01:29"]

1. e4 {[%clk 0:03:00]}  c5 {[%clk 0:02:34]} 2. Nf3 {[%clk 0:02:58]}  e6 {[%clk 0:02:34]} 3. d4 {[%clk 0:02:57]}  cxd4 {[%clk 0:02:35]} 4. Nxd4 {[%clk 0:02:58]}  Nf6 {[%clk 0:02:35]} 5. Nc3 {[%clk 0:02:56]}  d6 {[%clk 0:02:36]} 6. g4 {[%clk 0:02:55]}  a6 {[%clk 0:02:36]} 7. g5 {[%clk 0:02:47]}  Nfd7 {[%clk 0:02:34]} 8. Be3 {[%clk 0:02:42]}  Qc7 {[%clk 0:02:34]} 9. Qd2 {[%clk 0:02:40]}  b5 {[%clk 0:02:33]} 10. a3 {[%clk 0:02:36]}  Bb7 {[%clk 0:02:34]} 11. O-O-O {[%clk 0:02:34]}  Nc6 {[%clk 0:02:34]} 12. Nxc6 {[%clk 0:01:58]}  Bxc6 {[%clk 0:02:32]} 13. Bg2 {[%clk 0:01:57]}  Qb7 {[%clk 0:02:29]} 14. f4 {[%clk 0:01:44]}  Be7 {[%clk 0:02:24]} 15. Bd4 {[%clk 0:01:01]}  O-O {[%clk 0:02:23]} 16. h4 {[%clk 0:01:00]}  Nb6 {[%clk 0:02:18]} 17. h5 {[%clk 0:00:56]}  Nc4 {[%clk 0:02:18]} 18. Qe2 {[%clk 0:00:56]}  e5 {[%clk 0:02:18]} 19. Bf2 {[%clk 0:00:48]}  exf4 {[%clk 0:02:18]} 20. g6 {[%clk 0:00:45]}  fxg6 {[%clk 0:02:17]} 21. hxg6 {[%clk 0:00:45]}  h6 {[%clk 0:02:17]} 22. Bh3 {[%clk 0:00:43]}  Bf6 {[%clk 0:02:12]} 23. Be6+ {[%clk 0:00:43]}  Kh8 {[%clk 0:02:12]} 24. Bd4 {[%clk 0:00:40]}  Bxd4 {[%clk 0:01:58]} 25. Rxd4 {[%clk 0:00:40]}  f3 {[%clk 0:01:58]} 26. Qf2 {[%clk 0:00:24]}  Qb6 {[%clk 0:01:57]} 27. e5 {[%clk 0:00:12]}  dxe5 {[%clk 0:01:51]} 28. Rxh6+ {[%clk 0:00:12]}  gxh6 {[%clk 0:01:49]} 29. Qh4 {[%clk 0:00:12]}  Kg7 {[%clk 0:01:32]} 30. Qe7+ {[%clk 0:00:11]}  Kxg6 {[%clk 0:01:32]} 31. Rg4+ {[%clk 0:00:11]}  Kh5 {[%clk 0:01:29]} 32. Qh4# {[%clk 0:00:11]} 1-0


[Site "https://www.chess.com"]

[Event "Titled Tuesday Blitz April 18 Late 2023"]
[White "ChessSG1"]
[Black "Golubev, Mikhail"]
[BlackFideId "14100983"]
[WhiteElo "2225"]
[BlackElo "2374"]
[Result "0-1"]
[Round "06"]
[TimeControl "180+2"]
[Date "2023.04.18"]
[WhiteClock "0:00:01"]
[BlackClock "0:00:09"]

1. c4 {[%clk 0:03:00]}  g6 {[%clk 0:02:57]} 2. g3 {[%clk 0:03:00]}  Bg7 {[%clk 0:02:57]} 3. Bg2 {[%clk 0:03:00]}  e5 {[%clk 0:02:57]} 4. Nc3 {[%clk 0:03:00]}  Nc6 {[%clk 0:02:58]} 5. e3 {[%clk 0:02:58]}  d6 {[%clk 0:02:52]} 6. Nge2 {[%clk 0:02:58]}  Nf6 {[%clk 0:02:44]} 7. d4 {[%clk 0:02:51]}  O-O {[%clk 0:02:43]} 8. O-O {[%clk 0:02:50]}  exd4 {[%clk 0:02:41]} 9. exd4 {[%clk 0:02:50]}  Re8 {[%clk 0:02:41]} 10. h3 {[%clk 0:02:50]}  Bf5 {[%clk 0:02:31]} 11. Bg5 {[%clk 0:02:41]}  h6 {[%clk 0:02:28]} 12. Be3 {[%clk 0:02:42]}  Ne4 {[%clk 0:02:11]} 13. g4 {[%clk 0:02:30]}  Nxc3 {[%clk 0:02:08]} 14. Nxc3 {[%clk 0:02:30]}  Bd7 {[%clk 0:02:08]} 15. Qd2 {[%clk 0:02:31]}  Kh7 {[%clk 0:01:56]} 16. Rae1 {[%clk 0:02:31]}  f5 {[%clk 0:01:50]} 17. g5 {[%clk 0:02:22]}  Rxe3 {[%clk 0:00:40]} 18. fxe3 {[%clk 0:02:19]}  Qxg5 {[%clk 0:00:38]} 19. Nd5 {[%clk 0:02:15]}  Nxd4 {[%clk 0:00:25]} 20. Qf2 {[%clk 0:01:47]}  Ne6 {[%clk 0:00:23]} 21. h4 {[%clk 0:01:44]}  Qd8 {[%clk 0:00:21]} 22. h5 {[%clk 0:01:41]}  gxh5 {[%clk 0:00:18]} 23. Qxf5+ {[%clk 0:01:41]}  Kh8 {[%clk 0:00:18]} 24. Nf6 {[%clk 0:01:16]}  Bxf6 {[%clk 0:00:18]} 25. Qxf6+ {[%clk 0:01:17]}  Qxf6 {[%clk 0:00:18]} 26. Rxf6 {[%clk 0:01:17]}  Kg7 {[%clk 0:00:18]} 27. Ref1 {[%clk 0:01:18]}  Ng5 {[%clk 0:00:17]} 28. b3 {[%clk 0:00:55]}  Re8 {[%clk 0:00:17]} 29. Bxb7 {[%clk 0:00:50]}  Rxe3 {[%clk 0:00:17]} 30. Bd5 {[%clk 0:00:33]}  h4 {[%clk 0:00:15]} 31. b4 {[%clk 0:00:18]}  Bg4 {[%clk 0:00:12]} 32. c5 {[%clk 0:00:15]}  dxc5 {[%clk 0:00:10]} 33. bxc5 {[%clk 0:00:15]}  Re5 {[%clk 0:00:10]} 34. Bg2 {[%clk 0:00:02]}  Rxc5 {[%clk 0:00:10]} 35. Ra6 {[%clk 0:00:01]}  h3 {[%clk 0:00:09]} 36. Bh1 {[%clk 0:00:01]}  Rc2 {[%clk 0:00:09]} 0-1


[Site "https://www.chess.com"]

[Event "Titled Tuesday Blitz April 18 Late 2023"]
[White "Fajdetic, Hrvoje"]
[Black "Vanek, Tomas"]
[WhiteFideId "14501945"]
[BlackFideId "313459"]
[WhiteElo "2185"]
[BlackElo "2052"]
[Result "1-0"]
[Round "06"]
[TimeControl "180+2"]
[Date "2023.04.18"]
[WhiteClock "0:00:07"]
[BlackClock "0:00:03"]

1. d4 {[%clk 0:02:53]}  f5 {[%clk 0:02:59]} 2. Bg5 {[%clk 0:02:53]}  h6 {[%clk 0:02:58]} 3. Bh4 {[%clk 0:02:53]}  g5 {[%clk 0:02:58]} 4. e3 {[%clk 0:02:53]}  Nf6 {[%clk 0:02:57]} 5. Bg3 {[%clk 0:02:52]}  d6 {[%clk 0:02:57]} 6. h4 {[%clk 0:02:51]}  g4 {[%clk 0:02:57]} 7. Ne2 {[%clk 0:02:51]}  Nh5 {[%clk 0:02:56]} 8. Nf4 {[%clk 0:02:49]}  Nxf4 {[%clk 0:02:53]} 9. Bxf4 {[%clk 0:02:48]}  Bg7 {[%clk 0:02:52]} 10. Bc4 {[%clk 0:02:48]}  Nc6 {[%clk 0:02:47]} 11. Nc3 {[%clk 0:02:38]}  e5 {[%clk 0:02:45]} 12. dxe5 {[%clk 0:02:36]}  dxe5 {[%clk 0:02:44]} 13. Qxd8+ {[%clk 0:02:35]}  Nxd8 {[%clk 0:02:44]} 14. Bh2 {[%clk 0:02:31]}  c6 {[%clk 0:02:36]} 15. O-O-O {[%clk 0:02:28]}  Ke7 {[%clk 0:02:24]} 16. e4 {[%clk 0:02:24]}  f4 {[%clk 0:02:21]} 17. f3 {[%clk 0:02:23]}  Ne6 {[%clk 0:02:00]} 18. Bg1 {[%clk 0:02:12]}  Nd4 {[%clk 0:01:54]} 19. Ne2 {[%clk 0:02:07]}  gxf3 {[%clk 0:01:15]} 20. Nxd4 {[%clk 0:02:05]}  fxg2 {[%clk 0:01:15]} 21. Rh2 {[%clk 0:01:59]}  exd4 {[%clk 0:01:15]} 22. Rxg2 {[%clk 0:02:00]}  Bf6 {[%clk 0:01:10]} 23. Bxd4 {[%clk 0:01:50]}  f3 {[%clk 0:01:10]} 24. Bxf6+ {[%clk 0:01:33]}  Kxf6 {[%clk 0:01:09]} 25. Rf1 {[%clk 0:01:33]}  Ke5 {[%clk 0:01:03]} 26. Rxf3 {[%clk 0:01:31]}  Kxe4 {[%clk 0:01:03]} 27. Rf7 {[%clk 0:01:20]}  b5 {[%clk 0:01:02]} 28. Bd3+ {[%clk 0:01:16]}  Kd4 {[%clk 0:01:02]} 29. Rg6 {[%clk 0:01:08]}  Kc5 {[%clk 0:00:58]} 30. Rc7 {[%clk 0:01:02]}  Rf8 {[%clk 0:00:25]} 31. Rcxc6+ {[%clk 0:00:56]}  Kd5 {[%clk 0:00:25]} 32. Bxb5 {[%clk 0:00:48]}  Bf5 {[%clk 0:00:16]} 33. Rxh6 {[%clk 0:00:37]}  Rac8 {[%clk 0:00:14]} 34. Rhd6+ {[%clk 0:00:26]}  Ke5 {[%clk 0:00:14]} 35. h5 {[%clk 0:00:14]}  Rxc6 {[%clk 0:00:14]} 36. Rxc6 {[%clk 0:00:14]}  Rh8 {[%clk 0:00:14]} 37. Be2 {[%clk 0:00:12]}  Kd5 {[%clk 0:00:12]} 38. Rc3 {[%clk 0:00:11]}  Be4 {[%clk 0:00:11]} 39. Rg3 {[%clk 0:00:10]}  Kd4 {[%clk 0:00:10]} 40. c3+ {[%clk 0:00:09]}  Ke5 {[%clk 0:00:10]} 41. b4 {[%clk 0:00:09]}  Kf4 {[%clk 0:00:11]} 42. Rg1 {[%clk 0:00:08]}  Ke3 {[%clk 0:00:10]} 43. Bd1 {[%clk 0:00:08]}  Kd3 {[%clk 0:00:09]} 44. Rg3+ {[%clk 0:00:08]}  Kc4 {[%clk 0:00:09]} 45. Kb2 {[%clk 0:00:08]}  Rf8 {[%clk 0:00:07]} 46. Bb3+ {[%clk 0:00:07]}  Kb5 {[%clk 0:00:06]} 47. a4+ {[%clk 0:00:07]}  Kb6 {[%clk 0:00:06]} 48. Ka3 {[%clk 0:00:07]}  a5 {[%clk 0:00:05]} 49. Re3 {[%clk 0:00:07]}  Bc6 {[%clk 0:00:05]} 50. Re6 {[%clk 0:00:07]}  Kb7 {[%clk 0:00:05]} 51. b5 {[%clk 0:00:07]}  Bd7 {[%clk 0:00:05]} 52. Rd6 {[%clk 0:00:06]}  Kc7 {[%clk 0:00:05]} 53. Rh6 {[%clk 0:00:06]}  Rf3 {[%clk 0:00:04]} 54. c4 {[%clk 0:00:06]}  Rc3 {[%clk 0:00:04]} 55. Rh7 {[%clk 0:00:06]}  Rc1 {[%clk 0:00:02]} 56. b6+ {[%clk 0:00:05]}  Kc6 {[%clk 0:00:02]} 57. b7 {[%clk 0:00:04]}  Kxb7 {[%clk 0:00:03]} 58. Rxd7+ {[%clk 0:00:04]}  Kc6 {[%clk 0:00:04]} 59. Rd5 {[%clk 0:00:05]}  Ra1+ {[%clk 0:00:04]} 60. Kb2 {[%clk 0:00:04]}  Rh1 {[%clk 0:00:05]} 61. Rb5 {[%clk 0:00:05]}  Rh2+ {[%clk 0:00:05]} 62. Ka3 {[%clk 0:00:05]}  Kc7 {[%clk 0:00:04]} 63. Rxa5 {[%clk 0:00:05]}  Kb6 {[%clk 0:00:05]} 64. Rb5+ {[%clk 0:00:06]}  Ka6 {[%clk 0:00:05]} 65. Kb4 {[%clk 0:00:07]}  Rh4 {[%clk 0:00:03]} 66. a5 {[%clk 0:00:08]}  Rh3 {[%clk 0:00:02]} 67. Rb6+ {[%clk 0:00:08]}  Ka7 {[%clk 0:00:01]} 68. h6 {[%clk 0:00:09]}  Rxh6 {[%clk 0:00:01]} 69. Rxh6 {[%clk 0:00:08]}  Ka8 {[%clk 0:00:01]} 70. Kb5 {[%clk 0:00:08]}  Kb8 {[%clk 0:00:02]} 71. Kb6 {[%clk 0:00:08]}  Ka8 {[%clk 0:00:03]} 72. Rh8# {[%clk 0:00:07]} 1-0


[Site "https://www.chess.com"]

[Event "Titled Tuesday Blitz April 18 Late 2023"]
[White "Garrido, Denis"]
[Black "Brod, Manfred"]
[WhiteFideId "601217"]
[BlackFideId "1602110"]
[WhiteElo "2315"]
[BlackElo "2093"]
[Result "1-0"]
[Round "06"]
[TimeControl "180+2"]
[Date "2023.04.18"]
[WhiteClock "0:00:48"]
[BlackClock "0:00:42"]

1. d4 {[%clk 0:03:00]}  f5 {[%clk 0:02:53]} 2. c4 {[%clk 0:02:58]}  Nf6 {[%clk 0:02:53]} 3. g3 {[%clk 0:02:58]}  e6 {[%clk 0:02:51]} 4. Bg2 {[%clk 0:02:58]}  Be7 {[%clk 0:02:52]} 5. Nf3 {[%clk 0:02:58]}  O-O {[%clk 0:02:52]} 6. O-O {[%clk 0:02:59]}  d6 {[%clk 0:02:52]} 7. Nc3 {[%clk 0:02:59]}  Ne4 {[%clk 0:02:52]} 8. Nxe4 {[%clk 0:02:56]}  fxe4 {[%clk 0:02:52]} 9. Nd2 {[%clk 0:02:56]}  d5 {[%clk 0:02:53]} 10. f3 {[%clk 0:02:56]}  Nc6 {[%clk 0:02:48]} 11. fxe4 {[%clk 0:02:53]}  dxc4 {[%clk 0:02:43]} 12. Rxf8+ {[%clk 0:02:50]}  Bxf8 {[%clk 0:02:37]} 13. Nf3 {[%clk 0:02:35]}  b6 {[%clk 0:01:59]} 14. d5 {[%clk 0:02:26]}  Bc5+ {[%clk 0:01:54]} 15. Kh1 {[%clk 0:02:25]}  Ne7 {[%clk 0:01:48]} 16. Ne5 {[%clk 0:02:23]}  Bb7 {[%clk 0:01:41]} 17. Bg5 {[%clk 0:01:48]}  exd5 {[%clk 0:01:40]} 18. exd5 {[%clk 0:01:29]}  h6 {[%clk 0:01:33]} 19. Bxe7 {[%clk 0:01:25]}  Qxe7 {[%clk 0:01:33]} 20. Nxc4 {[%clk 0:01:19]}  Rd8 {[%clk 0:01:24]} 21. e4 {[%clk 0:01:14]}  c6 {[%clk 0:01:21]} 22. Qb3 {[%clk 0:01:03]}  cxd5 {[%clk 0:01:17]} 23. exd5 {[%clk 0:01:04]}  Rxd5 {[%clk 0:01:17]} 24. Nxb6 {[%clk 0:00:57]}  axb6 {[%clk 0:00:53]} 25. Bxd5+ {[%clk 0:00:56]}  Kh8 {[%clk 0:00:51]} 26. Rf1 {[%clk 0:00:51]}  Qe6 {[%clk 0:00:42]} 27. Bxb7 {[%clk 0:00:48]} 1-0


[Site "https://www.chess.com"]

[Event "Titled Tuesday Blitz April 18 Late 2023"]
[White "brm72"]
[Black "Georg, Heinz"]
[BlackFideId "4607295"]
[WhiteElo "2577"]
[BlackElo "2258"]
[Result "1-0"]
[Round "06"]
[TimeControl "180+2"]
[Date "2023.04.18"]
[WhiteClock "0:01:13"]
[BlackClock "0:01:01"]

1. e4 {[%clk 0:03:00]}  c6 {[%clk 0:02:54]} 2. d4 {[%clk 0:03:00]}  d5 {[%clk 0:02:55]} 3. e5 {[%clk 0:03:00]}  Bf5 {[%clk 0:02:54]} 4. Nf3 {[%clk 0:03:00]}  e6 {[%clk 0:02:54]} 5. Be2 {[%clk 0:03:00]}  Nd7 {[%clk 0:02:53]} 6. Nbd2 {[%clk 0:03:00]}  Ne7 {[%clk 0:02:53]} 7. a4 {[%clk 0:02:59]}  h6 {[%clk 0:02:52]} 8. a5 {[%clk 0:02:59]}  Qc7 {[%clk 0:02:48]} 9. c3 {[%clk 0:02:52]}  g5 {[%clk 0:02:48]} 10. b4 {[%clk 0:02:52]}  Bg7 {[%clk 0:02:47]} 11. O-O {[%clk 0:02:50]}  O-O-O {[%clk 0:02:42]} 12. Nb3 {[%clk 0:02:49]}  f6 {[%clk 0:02:41]} 13. exf6 {[%clk 0:02:44]}  Bxf6 {[%clk 0:02:42]} 14. Nc5 {[%clk 0:02:44]}  Nxc5 {[%clk 0:02:41]} 15. bxc5 {[%clk 0:02:44]}  e5 {[%clk 0:02:41]} 16. a6 {[%clk 0:02:43]}  e4 {[%clk 0:02:24]} 17. axb7+ {[%clk 0:02:42]}  Kd7 {[%clk 0:02:23]} 18. Rxa7 {[%clk 0:02:29]}  Rb8 {[%clk 0:02:20]} 19. Ne5+ {[%clk 0:02:11]}  Bxe5 {[%clk 0:02:19]} 20. dxe5 {[%clk 0:02:12]}  Qxe5 {[%clk 0:02:15]} 21. Be3 {[%clk 0:02:12]}  Qc7 {[%clk 0:02:05]} 22. Qb3 {[%clk 0:01:53]}  Ng6 {[%clk 0:01:52]} 23. c4 {[%clk 0:01:52]}  Be6 {[%clk 0:01:27]} 24. cxd5 {[%clk 0:01:49]}  Bxd5 {[%clk 0:01:28]} 25. Bc4 {[%clk 0:01:49]}  Ne7 {[%clk 0:01:13]} 26. Rd1 {[%clk 0:01:46]}  Rhd8 {[%clk 0:01:07]} 27. h4 {[%clk 0:01:26]}  gxh4 {[%clk 0:01:04]} 28. Bxh6 {[%clk 0:01:26]}  h3 {[%clk 0:01:04]} 29. Qxh3+ {[%clk 0:01:25]}  Ke8 {[%clk 0:01:03]} 30. Qh5+ {[%clk 0:01:25]}  Kd7 {[%clk 0:01:02]} 31. Qg4+ {[%clk 0:01:23]}  Ke8 {[%clk 0:01:01]} 32. Bf4 {[%clk 0:01:13]} 1-0


[Site "https://www.chess.com"]